fUST/lending_fUST_20240621
["ID","MTS","AMOUNT","RATE_DAILY","PERIOD"]
[330027271,1718952445390,-500.0,0.0005452,120]
[330027272,1718952445411,-500.0,0.0005452,2]
[330027273,1718952445432,-500.0,0.0005452,120]
[330027274,1718952445555,-500.0,0.0005452,120]
[330027275,1718952445577,-500.0,0.0005452,120]
[330027276,1718952445598,-500.0,0.0005452,120]
[330027277,1718952445618,-1152.71,0.0005452,120]
[330027278,1718952445640,-500.0,0.0005452,120]
[330027279,1718952445661,-500.0,0.0005452,120]
[330027280,1718952445682,-505.1641777,0.0005452,120]
[330027281,1718952445701,-500.0,0.0005452,120]
[330027282,1718952445721,-500.0,0.0005452,120]
[330027283,1718952445741,-500.0,0.0005452,7]
[330027284,1718952445761,-500.0,0.0005452,120]
[330027285,1718952445781,-500.0,0.0005452,120]
[330027286,1718952445800,-211.4112379,0.0005452,120]
[330027287,1718952445821,-500.0,0.0005452,120]
[330027288,1718952445840,-500.0,0.0005452,120]
[330027289,1718952445859,-628.92,0.0005452,120]
[330027290,1718952445879,-500.0,0.0005452,120]
[330027291,1718952445902,-500.0,0.0005452,120]
[330027292,1718952445921,-500.0,0.0005452,120]
[330027293,1718952445940,-1173.25,0.0005452,120]
[330027294,1718952445959,-500.0,0.0005452,120]
[330027295,1718952445979,-500.0,0.0005452,120]
[330027296,1718952445999,-514.05,0.0005452,120]
[330027297,1718952446020,-500.0,0.0005452,120]
[330027298,1718952446039,-500.0,0.0005452,120]
[330027299,1718952446060,-500.0,0.0005452,120]
[330027300,1718952446081,-500.0,0.0005452,120]
[330027301,1718952446104,-500.0,0.0005452,120]
[330027302,1718952446124,-500.0,0.0005452,120]
[330027303,1718952446145,-500.0,0.0005452,120]
[330027304,1718952446165,-500.0,0.0005452,120]
[330027305,1718952446184,-391.51009103,0.0005452,120]
[330027306,1718952446203,-500.0,0.0005452,120]
[330027307,1718952446223,-1127.18,0.0005452,120]
[330027308,1718952446243,-500.0,0.0005452,120]
[330027309,1718952446263,-500.0,0.0005452,120]
[330027310,1718952446284,-500.0,0.0005452,120]
[330027311,1718952446303,-500.0,0.0005452,120]
[330027312,1718952446323,-217.29290856,0.0005452,120]
[330027313,1718952446343,-500.0,0.0005452,120]
[330027314,1718952446363,-500.0,0.0005452,120]
[330027315,1718952446383,-500.0,0.0005452,120]
[330027316,1718952446402,-604.89,0.0005452,120]
[330027317,1718952446421,-500.0,0.0005452,120]
[330027318,1718952446442,-2047.94,0.0005452,120]
[330027319,1718952446466,-671.76,0.0005452,120]
[330027320,1718952446486,-500.0,0.0005452,120]
[330027321,1718952446506,-500.0,0.0005452,120]
[330027322,1718952446527,-538.03519983,0.0005452,120]
[330027323,1718952446549,-956.91,0.0005452,120]
[330027324,1718952446568,-508.95639627,0.0005452,120]
[330027325,1718952446588,-500.0,0.0005452,120]
[330027326,1718952446608,-507.99,0.0005452,120]
[330027327,1718952446628,-1568.03,0.0005452,120]
[330027328,1718952446648,-500.0,0.0005452,120]
[330027329,1718952446668,-1590.63,0.0005452,120]
[330027330,1718952446688,-638.09,0.0005452,120]
[330027331,1718952446708,-188.37814953,0.0005452,120]
[330027332,1718952446728,-1084.53,0.0005452,120]
[330027333,1718952446748,-500.0,0.0005452,120]
[330027334,1718952446767,-500.0,0.0005452,2]
[330027335,1718952446786,-500.0,0.0005452,120]
[330027336,1718952446806,-1254.12,0.0005452,120]
[330027337,1718952446827,-500.0,0.0005452,120]
[330027338,1718952446848,-1389.63,0.0005452,120]
[330027339,1718952446869,-500.0,0.0005452,120]
[330027340,1718952446890,-494.60862633,0.0005452,120]
[330027341,1718952446911,-500.0,0.0005452,120]
[330027342,1718952446935,-500.0,0.0005452,120]
[330027343,1718952446956,-511.71485958,0.0005452,120]
[330027344,1718952446976,-500.0,0.0005452,120]
[330027345,1718952446996,-500.0,0.0005452,120]
[330027346,1718952447016,-1079.75,0.0005452,120]
[330027347,1718952447037,-500.0,0.0005452,120]
[330027348,1718952447058,-500.0,0.0005452,120]
[330027349,1718952447078,-523.71,0.0005452,120]
[330027350,1718952447098,-502.54576136,0.0005452,120]
[330027351,1718952447117,-506.65411895,0.0005452,120]
[330027352,1718952447137,-500.0,0.0005452,120]
[330027353,1718952447156,-500.0,0.0005452,120]
[330027354,1718952447176,-500.0,0.0005452,120]
[330027355,1718952447196,-500.0,0.0005452,120]
[330027356,1718952447216,-500.0,0.0005452,30]
[330027357,1718952447237,-508.19156623,0.0005452,120]
[330027358,1718952447256,-250.0,0.0005452,120]
[330027359,1718952447276,-642.97,0.0005452,120]
[330027360,1718952447295,-500.0,0.0005452,120]
[330027361,1718952447315,-500.0,0.0005452,120]
[330027362,1718952447334,-500.0,0.0005452,120]
[330027363,1718952447354,-500.0,0.0005452,120]
[330027364,1718952447373,-500.0,0.0005452,120]
[330027365,1718952447394,-1526.55,0.0005452,120]
[330027366,1718952447415,-500.0,0.0005452,120]
[330027367,1718952447435,-500.0,0.0005452,120]
[330027368,1718952447460,-500.0,0.0005452,120]
[330027369,1718952447481,-500.0,0.0005452,120]
[330027370,1718952447502,-500.0,0.0005452,120]
[330027371,1718952447525,-12.92532372,0.0005452,120]
[330027372,1718952447580,-487.07467628,0.0005452,120]
[330027373,1718952447601,-500.0,0.0005452,120]
[330027374,1718952447622,-500.0,0.0005452,120]
[330027375,1718952447730,-500.0,0.0005452,120]
[330027376,1718952447751,-4167.24,0.0005452,120]
[330027377,1718952447771,-500.0,0.0005452,120]
[330027378,1718952447792,-500.0,0.0005452,120]
[330027379,1718952447812,-500.0,0.0005452,120]
[330027380,1718952447832,-500.0,0.0005452,120]
[330027381,1718952447852,-500.0,0.0005452,120]
[330027382,1718952447872,-500.0,0.0005452,120]
[330027383,1718952447892,-566.08,0.0005452,120]
[330027384,1718952447912,-500.0,0.0005452,120]
[330027385,1718952447931,-526.07248812,0.0005452,120]
[330027386,1718952447952,-500.0,0.0005452,120]
[330027387,1718952447972,-606.05,0.0005452,120]
[330027388,1718952447991,-500.0,0.0005452,120]
[330027389,1718952448011,-980.21,0.0005452,120]
[330027390,1718952448031,-500.0,0.0005452,120]
[330027391,1718952448049,-504.01179433,0.0005452,120]
[330027392,1718952448068,-500.0,0.0005452,120]
[330027393,1718952448087,-591.12,0.0005452,120]
[330027394,1718952448108,-10785.99,0.0005452,120]
[330027395,1718952448128,-557.42,0.0005452,120]
[330027396,1718952448147,-500.0,0.0005452,120]
[330027397,1718952448167,-502.99877173,0.0005452,14]
[330027398,1718952448187,-500.0,0.0005452,120]
[330027399,1718952448206,-500.0,0.0005452,120]
[330027400,1718952448225,-820.69,0.0005452,120]
[330027401,1718952448245,-859.51,0.0005452,120]
[330027402,1718952448264,-500.0,0.0005452,120]
[330027403,1718952448283,-500.0,0.0005452,120]
[330027404,1718952448302,-1578.73,0.0005452,120]
[330027405,1718952448323,-1235.9,0.0005452,120]
[330027406,1718952448342,-500.0,0.0005452,120]
[330027407,1718952448361,-1249.43,0.0005452,120]
[330027408,1718952448380,-1816.5,0.0005452,120]
[330027409,1718952448399,-500.0,0.0005452,120]
[330027410,1718952448419,-502.02218571,0.0005452,120]
[330027411,1718952448439,-1619.46,0.0005452,120]
[330027412,1718952448462,-11609.79,0.0005452,120]
[330027413,1718952448482,-500.0,0.0005452,120]
[330027414,1718952448503,-500.0,0.0005452,120]
[330027415,1718952448523,-183.07878719,0.0005452,120]
[330027416,1718952448546,-500.0,0.0005452,120]
[330027417,1718952448565,-500.0,0.0005452,120]
[330027418,1718952448586,-3342.16,0.0005452,21]
[330027419,1718952448605,-1414.37,0.0005452,120]
[330027420,1718952448625,-500.0,0.0005452,120]
[330027421,1718952448645,-2106.07,0.0005452,120]
[330027422,1718952448664,-500.0,0.0005452,120]
[330027423,1718952448683,-500.0,0.0005452,120]
[330027424,1718952448702,-500.0,0.0005452,120]
[330027425,1718952448722,-1037.29,0.0005452,120]
[330027426,1718952448744,-1897.6,0.0005452,120]
[330027427,1718952448764,-500.0,0.0005452,120]
[330027428,1718952448784,-6456.12,0.0005452,120]
[330027429,1718952448806,-500.0,0.0005452,120]
[330027430,1718952448826,-500.0,0.0005452,120]
[330027431,1718952448846,-17348.99,0.0005452,120]
[330027432,1718952448866,-500.0,0.0005452,120]
[330027433,1718952448885,-500.0,0.0005452,120]
[330027434,1718952448906,-500.0,0.0005452,120]
[330027435,1718952448926,-500.0,0.0005452,120]
[330027436,1718952448946,-6446.18,0.0005452,120]
[330027437,1718952448966,-500.0,0.0005452,120]
[330027438,1718952448989,-730.72,0.0005452,120]
[330027439,1718952449010,-543.83,0.0005452,120]
[330027440,1718952449030,-500.0,0.0005452,120]
[330027441,1718952449051,-500.0,0.0005452,120]
[330027442,1718952449071,-500.0,0.0005452,120]
[330027443,1718952449093,-500.0,0.0005452,120]
[330027444,1718952449116,-500.0,0.0005452,120]
[330027445,1718952449137,-500.0,0.0005452,120]
[330027446,1718952449159,-500.0,0.0005452,120]
[330027447,1718952449180,-500.0,0.0005452,7]
[330027448,1718952449199,-500.0,0.0005452,120]
[330027449,1718952449219,-509.61255725,0.0005452,120]
[330027450,1718952449239,-500.0,0.0005452,120]
[330027451,1718952449258,-4827.06,0.0005452,120]
[330027452,1718952449280,-500.0,0.0005452,120]
[330027453,1718952449313,-1057.23,0.0005452,120]
[330027454,1718952449332,-500.0,0.0005452,120]
[330027455,1718952449352,-525.40343299,0.0005452,120]
[330027456,1718952449371,-1219.27,0.0005452,120]
[330027457,1718952449391,-1501.44,0.0005452,120]
[330027458,1718952449410,-500.0,0.0005452,120]
[330027459,1718952449429,-500.0,0.0005452,120]
[330027460,1718952449452,-5689.83,0.0005452,120]
[330027461,1718952449471,-2550.53,0.0005452,120]
[330027462,1718952449494,-2550.53,0.0005452,120]
[330027463,1718952449513,-2550.53,0.0005452,120]
[330027464,1718952449537,-2550.53,0.0005452,120]
[330027465,1718952449557,-2550.53,0.0005452,120]
[330027466,1718952449578,-2550.53,0.0005452,120]
[330027467,1718952449597,-2550.53,0.0005452,120]
[330027468,1718952449616,-500.0,0.0005452,120]
[330027469,1718952449634,-594.04684314,0.0005452,120]
[330027470,1718952449653,-509.23919175,0.0005452,120]
[330027471,1718952449672,-509.92354477,0.0005452,120]
[330027472,1718952449690,-528.83690298,0.0005452,120]
[330027473,1718952449792,-500.0,0.0005452,120]
[330027474,1718952449812,-590.515982,0.0005452,120]
[330027475,1718952449832,-500.0,0.0005452,120]
[330027476,1718952449851,-500.0,0.0005452,120]
[330027477,1718952449871,-500.0,0.0005452,120]
[330027478,1718952449890,-1156.35,0.0005452,120]
[330027479,1718952449910,-1311.69409176,0.0005452,120]
[330027480,1718952450052,-696.88590824,0.0005452,120]
[330027481,1718952450075,-617.23,0.0005452,120]
[330027482,1718952450098,-509.20373526,0.0005452,120]
[330027483,1718952450118,-500.0,0.0005452,120]
[330027484,1718952450139,-500.0,0.0005452,120]
[330027485,1718952450162,-500.0,0.0005452,60]
[330027486,1718952450185,-973.17,0.0005452,120]
[330027487,1718952450206,-973.17,0.0005452,120]
[330027488,1718952450226,-973.17,0.0005452,120]
[330027489,1718952450247,-973.17,0.0005452,120]
[330027490,1718952450268,-973.17,0.0005452,120]
[330027491,1718952450290,-507.72768513,0.0005452,120]
[330027492,1718952450310,-511.34434317,0.0005452,120]
[330027493,1718952450332,-500.0,0.00054599,120]
[330027494,1718952450351,-1306.8872582,0.00054599,120]
[330027495,1718952450391,-1243.6427418,0.00054599,120]
[330027496,1718952450411,-2550.53,0.00054599,120]
[330027497,1718952450432,-4480.81,0.000546,120]
[330027498,1718952450456,-2419.87,0.000546,120]
[330027499,1718952450476,-500.0,0.000546,120]
[330027500,1718952450498,-500.0,0.000546,120]
[330027501,1718952450517,-500.0,0.000546,120]
[330027502,1718952450539,-500.0,0.000546,120]
[330027503,1718952450559,-5705.62,0.000546,120]
[330027504,1718952450579,-500.0,0.000546,120]
[330027505,1718952450597,-641.41,0.000546,120]
[330027506,1718952450616,-1042.16,0.000546,120]
[330027507,1718952450637,-500.0,0.000546,120]
[330027508,1718952450657,-500.0,0.000546,120]
[330027509,1718952450679,-500.0,0.000546,120]
[330027510,1718952450698,-560.84,0.000546,120]
[330027511,1718952450717,-500.0,0.000546,120]
[330027512,1718952450736,-3654.13,0.000546,120]
[330027513,1718952450756,-973.17,0.000546,120]
[330027514,1718952450781,-500.0,0.00054601,120]
[330027515,1718952450803,-500.0,0.00054601,120]
[330027516,1718952450823,-500.0,0.00054601,120]
[330027517,1718952450843,-262.34037729,0.00054601,120]
[330027518,1718952450864,-500.0,0.00054601,120]
[330027519,1718952450884,-500.0,0.00054601,120]
[330027520,1718952450905,-500.0,0.00054601,120]
[330027521,1718952450928,-500.0,0.00054601,120]
[330027522,1718952450951,-500.0,0.00054601,120]
[330027523,1718952450976,-500.0,0.00054601,120]
[330027524,1718952451000,-500.0,0.00054601,120]
[330027525,1718952451023,-500.0,0.00054601,120]
[330027526,1718952451049,-500.0,0.00054601,120]
[330027527,1718952451070,-500.0,0.00054601,120]
[330027528,1718952451091,-500.0,0.00054601,120]
[330027529,1718952451112,-500.0,0.00054601,120]
[330027530,1718952451132,-500.0,0.00054601,120]
[330027531,1718952451152,-500.0,0.00054601,120]
[330027532,1718952451172,-500.0,0.00054601,120]
[330027533,1718952451192,-2550.53,0.00054601,120]
[330027534,1718952451212,-2550.53,0.00054601,120]
[330027535,1718952451233,-2550.53,0.00054601,120]
[330027536,1718952451254,-2550.53,0.00054601,120]
[330027537,1718952451274,-973.17,0.00054601,120]
[330027538,1718952451296,-973.17,0.00054601,120]
[330027539,1718952451318,-973.17,0.00054601,120]
[330027541,1718952451338,-500.0,0.00054602,120]
[330027542,1718952451359,-500.0,0.00054602,120]
[330027544,1718952451379,-876.56,0.00054602,120]
[330027546,1718952451398,-600.0,0.00054602,120]
[330027548,1718952451417,-639.82,0.00054602,120]
[330027550,1718952451438,-500.0,0.00054602,120]
[330027552,1718952451461,-707.87,0.00054602,120]
[330027554,1718952451482,-500.0,0.00054602,120]
[330027556,1718952451503,-1014.89,0.00054602,120]
[330027557,1718952451523,-500.0,0.00054602,120]
[330027558,1718952451547,-500.0,0.00054602,120]
[330027559,1718952451568,-500.0,0.00054602,120]
[330027560,1718952451590,-500.0,0.00054602,120]
[330027561,1718952451611,-500.0,0.00054602,120]
[330027562,1718952451632,-598.55,0.00054602,120]
[330027563,1718952451651,-2000.0,0.00054602,5]
[330027564,1718952451670,-821.52,0.00054602,120]
[330027565,1718952451690,-498.0,0.00054602,120]
[330027566,1718952451713,-672.75,0.00054602,120]
[330027567,1718952451735,-500.0,0.00054602,120]
[330027568,1718952451758,-500.0,0.00054602,120]
[330027569,1718952451858,-500.0,0.00054602,120]
[330027570,1718952451877,-500.0,0.00054602,120]
[330027571,1718952451897,-500.0,0.00054602,120]
[330027572,1718952451917,-1152.71,0.00054602,120]
[330027573,1718952451937,-500.0,0.00054602,120]
[330027574,1718952451957,-500.0,0.00054602,120]
[330027575,1718952451977,-500.0,0.00054602,120]
[330027576,1718952451996,-500.0,0.00054602,7]
[330027577,1718952452016,-500.0,0.00054602,120]
[330027578,1718952452036,-500.0,0.00054602,120]
[330027579,1718952452056,-500.0,0.00054602,120]
[330027580,1718952452076,-628.92,0.00054602,120]
[330027581,1718952452096,-500.0,0.00054602,120]
[330027582,1718952452116,-538.88406,0.00054602,120]
[330027583,1718952452136,-1173.25,0.00054602,120]
[330027584,1718952452157,-500.0,0.00054602,120]
[330027585,1718952452177,-514.05,0.00054602,120]
[330027586,1718952452197,-500.0,0.00054602,120]
[330027587,1718952452218,-500.0,0.00054602,120]
[330027588,1718952452238,-500.0,0.00054602,120]
[330027589,1718952452258,-1127.18,0.00054602,120]
[330027590,1718952452279,-500.0,0.00054602,120]
[330027591,1718952452299,-500.0,0.00054602,120]
[330027592,1718952452320,-500.0,0.00054602,120]
[330027593,1718952452340,-604.89,0.00054602,120]
[330027594,1718952452364,-517.57352651,0.00054602,120]
[330027595,1718952452384,-2047.94,0.00054602,120]
[330027596,1718952452404,-671.76,0.00054602,120]
[330027597,1718952452425,-500.0,0.00054602,120]
[330027598,1718952452446,-500.0,0.00054602,120]
[330027599,1718952452470,-956.91,0.00054602,120]
[330027600,1718952452491,-500.0,0.00054602,120]
[330027601,1718952452511,-507.99,0.00054602,120]
[330027602,1718952452533,-1568.03,0.00054602,120]
[330027603,1718952452553,-500.0,0.00054602,120]
[330027604,1718952452574,-1590.63,0.00054602,120]
[330027605,1718952452593,-638.09,0.00054602,120]
[330027606,1718952452614,-1084.53,0.00054602,120]
[330027607,1718952452634,-500.0,0.00054602,120]
[330027608,1718952452654,-500.0,0.00054602,2]
[330027609,1718952452675,-500.0,0.00054602,120]
[330027610,1718952452694,-1254.12,0.00054602,120]
[330027611,1718952452714,-500.0,0.00054602,120]
[330027612,1718952452734,-1389.63,0.00054602,120]
[330027613,1718952452754,-500.0,0.00054602,120]
[330027614,1718952452773,-500.0,0.00054602,120]
[330027615,1718952452793,-500.0,0.00054602,120]
[330027616,1718952452812,-236.69446255,0.00054602,120]
[330027617,1718952452833,-1079.75,0.00054602,120]
[330027618,1718952452854,-523.71,0.00054602,120]
[330027619,1718952452876,-500.0,0.00054602,120]
[330027620,1718952452895,-500.0,0.00054602,120]
[330027621,1718952452917,-250.0,0.00054602,120]
[330027622,1718952452938,-642.97,0.00054602,120]
[330027623,1718952452959,-500.0,0.00054602,120]
[330027624,1718952452980,-500.0,0.00054602,120]
[330027625,1718952453000,-500.0,0.00054602,120]
[330027626,1718952453020,-500.0,0.00054602,120]
[330027627,1718952453040,-1526.55,0.00054602,120]
[330027628,1718952453060,-4167.24,0.00054602,120]
[330027629,1718952453079,-500.0,0.00054602,120]
[330027630,1718952453099,-500.0,0.00054602,120]
[330027631,1718952453132,-566.08,0.00054602,120]
[330027632,1718952453154,-296.81773512,0.00054602,120]
[330027633,1718952453175,-500.0,0.00054602,120]
[330027634,1718952453195,-606.05,0.00054602,120]
[330027635,1718952453216,-980.21,0.00054602,120]
[330027636,1718952453237,-412.5322674,0.00054602,120]
[330027637,1718952453259,-500.0,0.00054602,120]
[330027638,1718952453280,-591.12,0.00054602,120]
[330027639,1718952453308,-10785.99,0.00054602,120]
[330027640,1718952453329,-557.42,0.00054602,120]
[330027641,1718952453352,-500.0,0.00054602,120]
[330027642,1718952453378,-500.0,0.00054602,120]
[330027643,1718952453399,-820.69,0.00054602,120]
[330027644,1718952453420,-522.3857064,0.00054602,120]
[330027645,1718952453441,-1578.73,0.00054602,120]
[330027646,1718952453466,-1235.9,0.00054602,120]
[330027647,1718952453487,-1249.43,0.00054602,120]
[330027648,1718952453510,-1816.5,0.00054602,120]
[330027649,1718952453531,-1619.46,0.00054602,120]
[330027650,1718952453554,-6723.35185763,0.00054602,120]
[330027651,1718952550241,-214.28312822,0.00021999,2]
[330027652,1718952607505,184.304369,0.00021096,2]
[330027673,1718952632650,-1190.08946875,0.00031263,120]
[330027675,1718952632661,-18322.27600732,0.00031263,7]
[330027677,1718952632670,-1292.25355608,0.00031263,2]
[330027679,1718952632679,-10419.09269709,0.00031263,2]
[330027681,1718952632689,-828.23238386,0.000542,28]
[330027683,1718952632698,-8258.195999,0.000543,120]
[330027685,1718952632707,-301.61,0.0005449,3]
[330027687,1718952632716,-251.34,0.0005449,3]
[330027689,1718952632726,-209.45,0.0005449,3]
[330027690,1718952632735,-500.0,0.00054499,120]
[330027691,1718952632745,-81234.6662992,0.000545,5]
[330027692,1718952632754,-500.0,0.00054519,120]
[330027693,1718952632763,-500.0,0.00054519,120]
[330027694,1718952632773,-571.33182429,0.00054519,120]
[330027695,1718952632782,-500.0,0.0005452,120]
[330027696,1718952632792,-4528.77,0.0005452,120]
[330027697,1718952632801,-500.0,0.0005452,120]
[330027698,1718952632810,-500.0,0.0005452,120]
[330027699,1718952632819,-508.76871722,0.0005452,120]
[330027700,1718952632828,-10804.78,0.0005452,120]
[330027701,1718952632837,-616.69,0.0005452,120]
[330027702,1718952632847,-580.49375174,0.0005452,120]
[330027717,1718952640402,-174.54,0.0005451,3]
[330027718,1718952640412,-1738.54624826,0.0005452,120]
[330027719,1718952640424,-500.0,0.0005452,120]
[330027721,1718952640434,-30195.57,0.0005452,120]
[330027722,1718952640443,-1056.65,0.0005452,120]
[330027723,1718952640456,-752.3,0.0005452,120]
[330027724,1718952640466,-500.0,0.0005452,120]
[330027725,1718952640476,-500.0,0.0005452,120]
[330027726,1718952640487,-3202.9,0.0005452,21]
[330027727,1718952640496,-520.78600603,0.0005452,120]
[330027728,1718952640507,-500.0,0.0005452,120]
[330027729,1718952640519,-1818.53,0.0005452,120]
[330027730,1718952640528,-1213.45,0.0005452,120]
[330027731,1718952640538,-500.0,0.0005452,120]
[330027732,1718952640549,-500.0,0.0005452,120]
[330027733,1718952640558,-500.0,0.0005452,120]
[330027734,1718952640568,-500.0,0.0005452,120]
[330027735,1718952640577,-1484.51,0.0005452,120]
[330027736,1718952640586,-500.0,0.0005452,120]
[330027737,1718952640599,-500.0,0.0005452,120]
[330027738,1718952640609,-600.0,0.0005452,120]
[330027739,1718952640619,-5467.88,0.0005452,120]
[330027740,1718952640628,-500.0,0.0005452,120]
[330027741,1718952640638,-500.0,0.0005452,120]
[330027742,1718952640648,-6177.59,0.0005452,120]
[330027743,1718952640657,-6187.12,0.0005452,120]
[330027744,1718952640668,-500.0,0.0005452,120]
[330027745,1718952640678,-607.27,0.0005452,120]
[330027746,1718952640687,-500.0,0.0005452,120]
[330027747,1718952640697,-500.0,0.0005452,120]
[330027748,1718952640707,-500.0,0.0005452,120]
[330027749,1718952640716,-1355.44,0.0005452,120]
[330027750,1718952640726,-500.0,0.0005452,120]
[330027751,1718952640735,-2018.32,0.0005452,120]
[330027752,1718952640745,-619.88,0.0005452,120]
[330027753,1718952640755,-500.0,0.0005452,120]
[330027754,1718952640765,-500.0,0.0005452,120]
[330027755,1718952640775,-994.07,0.0005452,120]
[330027756,1718952640784,-648.89,0.0005452,120]
[330027757,1718952640793,-500.0,0.0005452,20]
[330027758,1718952640803,-803.51,0.0005452,120]
[330027759,1718952640813,-500.0,0.0005452,120]
[330027760,1718952640822,-1223.05,0.0005452,120]
[330027761,1718952640831,-500.0,0.0005452,120]
[330027762,1718952640840,-500.0,0.0005452,120]
[330027763,1718952640850,-500.0,0.0005452,120]
[330027764,1718952640860,-500.0,0.0005452,120]
[330027765,1718952640870,-614.69,0.0005452,120]
[330027766,1718952640879,-500.0,0.0005452,120]
[330027767,1718952640888,-500.0,0.0005452,120]
[330027768,1718952640898,-5452.75,0.0005452,120]
[330027769,1718952640907,-1094.11,0.0005452,120]
[330027770,1718952640918,-998.74,0.0005452,120]
[330027771,1718952640927,-500.0,0.0005452,120]
[330027772,1718952640936,-500.0,0.0005452,120]
[330027773,1718952640946,-500.0,0.0005452,120]
[330027774,1718952640955,-500.0,0.0005452,120]
[330027775,1718952640965,-262.83,0.0005452,120]
[330027776,1718952640975,-500.0,0.0005452,120]
[330027777,1718952640983,-554.48,0.0005452,120]
[330027778,1718952640993,-649.0788838,0.0005452,120]
[330027779,1718952641002,-1168.47,0.0005452,120]
[330027780,1718952641011,-500.0,0.0005452,120]
[330027781,1718952641021,-877.17,0.0005452,120]
[330027782,1718952641030,-500.0,0.0005452,120]
[330027783,1718952641039,-654.51,0.0005452,120]
[330027784,1718952641048,-513.61445704,0.0005452,120]
[330027785,1718952641058,-500.0,0.0005452,120]
[330027786,1718952641067,-1437.36,0.0005452,120]
[330027787,1718952641077,-930.31,0.0005452,120]
[330027788,1718952641086,-1924.89,0.0005452,120]
[330027789,1718952641096,-500.0,0.0005452,120]
[330027790,1718952641105,-537.47,0.0005452,120]
[330027791,1718952641114,-500.0,0.0005452,120]
[330027792,1718952641124,-1877.28,0.0005452,120]
[330027793,1718952641133,-591.52,0.0005452,120]
[330027794,1718952641142,-1438.88,0.0005452,120]
[330027795,1718952641153,-500.0,0.0005452,120]
[330027796,1718952641162,-1458.08,0.0005452,120]
[330027797,1718952641173,-500.0,0.0005452,120]
[330027798,1718952641183,-500.0,0.0005452,120]
[330027799,1718952641192,-3501.87,0.0005452,120]
[330027800,1718952641202,-4625.93,0.0005452,120]
[330027801,1718952641212,-500.0,0.0005452,120]
[330027802,1718952641221,-16626.11,0.000546,120]
[330027803,1718952641231,-550.55,0.000546,120]
[330027804,1718952641240,-577.31015754,0.00054602,120]
[330027805,1718952641250,-500.0,0.00054602,120]
[330027806,1718952641259,-500.0,0.00054602,120]
[330027807,1718952641268,-474.87524319,0.00054602,120]
[330027808,1718952641277,-500.0,0.00054602,120]
[330027809,1718952641371,-500.0,0.00054602,120]
[330027810,1718952641381,-730.72,0.00054602,120]
[330027811,1718952641390,-500.0,0.00054602,120]
[330027812,1718952641399,-505.0471163,0.00054602,120]
[330027813,1718952641409,-616.525255,0.00054602,120]
[330027814,1718952641420,-500.0,0.00054602,7]
[330027815,1718952641430,-500.0,0.00054602,120]
[330027816,1718952641439,-518.73471386,0.00054602,120]
[330027817,1718952641448,-1057.23,0.00054602,120]
[330027818,1718952641457,-500.0,0.00054602,120]
[330027819,1718952641468,-500.0,0.00054602,120]
[330027820,1718952641477,-342.8264236,0.00054602,120]
[330027821,1718952641486,-1156.35,0.00054602,120]